bitfinex-derivatives/quotes_BTCF0:USTF0_20250716
["timestamp","ask_amount","ask_price","bid_price","bid_amount"]
[1752630088498,0.1769945,117800.0,117790.0,0.30227984]
[1752630088695,0.34737593,117800.0,117790.0,1.04330664]
[1752630088996,0.34737593,117800.0,117790.0,1.30083311]
[1752630089191,0.17762143,117800.0,117790.0,1.66163311]
[1752630089595,0.37783055,117800.0,117790.0,1.66163311]
[1752630090598,0.38883055,117800.0,117790.0,1.66163311]
[1752630090997,0.38883055,117800.0,117790.0,1.05350224]
[1752630091198,0.38883055,117800.0,117790.0,1.28394224]
[1752630091501,0.58584952,117800.0,117790.0,1.28394224]
[1752630091699,0.41609502,117800.0,117790.0,1.28394224]
[1752630091900,0.26480633,117800.0,117790.0,1.28394224]
[1752630092097,0.54033809,117800.0,117790.0,1.28394224]
[1752630092700,0.34331912,117800.0,117790.0,1.28394224]
[1752630094105,0.17356462,117800.0,117790.0,1.28394224]
[1752630094802,0.17119462,117800.0,117790.0,1.28394224]
[1752630095304,0.06541736,117800.0,117790.0,1.28394224]
[1752630095702,0.17119462,117800.0,117790.0,1.28394224]
[1752630096202,0.06541736,117800.0,117790.0,1.28394224]
[1752630096600,0.23517186,117800.0,117790.0,1.28394224]
[1752630098109,0.06541736,117800.0,117790.0,1.64474224]
[1752630099912,0.04145462,117800.0,117790.0,1.81451114]
[1752630100109,0.04145462,117800.0,117790.0,1.64474224]
[1752630100705,0.04145462,117800.0,117790.0,1.83169507]
[1752630102303,0.04145462,117800.0,117790.0,1.47089507]
[1752630102507,0.04145462,117800.0,117790.0,1.83169507]
[1752630105405,0.04145462,117800.0,117790.0,1.5463061]
[1752630105712,0.04637462,117800.0,117790.0,1.83169507]
[1752630105914,0.04145462,117800.0,117790.0,1.83169507]
[1752630106317,0.04145462,117800.0,117790.0,1.66192607]
[1752630106518,0.04637462,117800.0,117790.0,1.66192607]
[1752630106909,0.04637462,117800.0,117790.0,1.83169507]
[1752630107209,0.04637462,117800.0,117790.0,1.3765371]
[1752630107405,0.04637462,117800.0,117790.0,1.66192607]
[1752630107610,0.21840922,117800.0,117790.0,1.07068607]
[1752630107815,0.04865462,117800.0,117790.0,1.66188607]
[1752630108016,0.04865462,117800.0,117790.0,1.83165507]
[1752630108419,0.04637462,117800.0,117790.0,1.83165507]
[1752630111117,0.04637462,117800.0,117790.0,1.66188607]
[1752630111312,0.21612922,117800.0,117790.0,1.66188607]
[1752630111616,0.04865462,117800.0,117790.0,1.66188607]
[1752630114011,0.04865462,117800.0,117790.0,1.66184607]
[1752630114611,0.21840922,117800.0,117790.0,1.07068607]
[1752630114816,0.23705312,117800.0,117790.0,1.64466224]
[1752630115017,0.23705312,117800.0,117790.0,1.35927327]
[1752630115217,0.23705312,117800.0,117790.0,1.64466224]
[1752630116120,0.23705312,117800.0,117790.0,1.35927327]
[1752630116416,0.23705312,117800.0,117790.0,1.64466224]
[1752630117918,0.23705312,117800.0,117790.0,1.28386224]
[1752630118118,0.23705312,117800.0,117790.0,0.1497868]
[1752630118410,0.176969,117790.0,117780.0,0.28538897]
[1752630118717,0.176969,117790.0,117780.0,0.99843327]
[1752630119218,0.0072,117790.0,117780.0,0.99843327]
[1752630119412,0.08308352,117790.0,117780.0,0.99843327]
[1752630120116,0.25285252,117790.0,117780.0,0.99843327]
[1752630120419,0.09208352,117790.0,117780.0,0.99843327]
[1752630120717,0.0162,117790.0,117780.0,1.81440564]
[1752630120915,0.09207815,117790.0,117780.0,1.81440564]
[1752630121108,0.09207815,117790.0,117780.0,1.83163611]
[1752630121306,0.08979815,117790.0,117780.0,1.83163611]
[1752630122113,0.08487815,117790.0,117780.0,1.54624714]
[1752630122318,0.11477726,117790.0,117780.0,1.83163611]
[1752630123523,0.009,117790.0,117780.0,1.83163611]
[1752630128326,0.11477726,117790.0,117780.0,1.83163611]
[1752630133536,0.009,117790.0,117780.0,1.83163611]
[1752630135933,0.0139,117790.0,117780.0,1.67102741]
[1752630136334,0.16555778,117790.0,117780.0,1.67102741]
[1752630137035,0.16065778,117790.0,117780.0,1.67102741]
[1752630138330,0.16555778,117790.0,117780.0,1.67102741]
[1752630139034,0.16555778,117790.0,117780.0,1.65169489]
[1752630139542,0.0139,117790.0,117780.0,1.65169489]
[1752630143744,0.0139,117790.0,117780.0,1.49108619]
[1752630144148,0.0139,117790.0,117780.0,1.20569722]
[1752630144347,0.0139,117790.0,117780.0,1.49108619]
[1752630144544,0.0139,117790.0,117780.0,1.32130279]
[1752630144949,0.16562886,117790.0,117780.0,1.32130279]
[1752630145446,0.16804886,117790.0,117780.0,1.32130279]
[1752630145746,0.29231128,117790.0,117780.0,1.32130279]
[1752630145947,0.12254228,117790.0,117780.0,1.32130279]
[1752630146843,0.12254228,117790.0,117780.0,1.07073271]
[1752630147047,0.01632,117790.0,117780.0,1.66157271]
[1752630148643,0.01632,117790.0,117780.0,1.40404624]
[1752630148850,0.186089,117790.0,117780.0,1.66157271]
[1752630149246,0.01632,117790.0,117780.0,1.66157271]
[1752630149448,0.186089,117790.0,117780.0,1.66157271]
[1752630150844,0.186089,117790.0,117780.0,1.37618374]
[1752630151050,0.186089,117790.0,117780.0,1.66157271]
[1752630152553,0.26203023,117790.0,117780.0,1.66157271]
[1752630153751,0.186089,117790.0,117780.0,1.66157271]
[1752630153946,0.186089,117790.0,117780.0,0.41088693]
[1752630153947,0.47147797,117790.0,117780.0,0.41088693]
[1752630154142,0.83227797,117790.0,117780.0,0.41088693]
[1752630154552,0.69861786,117790.0,117780.0,0.41088693]
[1752630155150,0.69861786,117790.0,117780.0,0.6962759]
[1752630155350,0.68961786,117790.0,117780.0,0.6962759]
[1752630155653,0.69161786,117790.0,117780.0,0.6962759]
[1752630155855,0.79782224,117790.0,117780.0,0.6962759]
[1752630156043,0.64609338,117790.0,117780.0,0.6962759]
[1752630156650,0.64609338,117790.0,117780.0,0.41088693]
[1752630156850,0.64609338,117790.0,117780.0,0.6962759]
[1752630157553,0.64609338,117790.0,117780.0,0.41088693]
[1752630157950,0.93148235,117790.0,117780.0,0.41088693]
[1752630159955,1.01146895,117790.0,117770.0,1.23686897]
[1752630160146,0.11351438,117780.0,117770.0,1.64418224]
[1752630160446,0.1322803,117780.0,117770.0,1.64418224]
[1752630161754,0.3060637,117780.0,117770.0,1.64418224]
[1752630162958,0.1362803,117780.0,117770.0,1.64418224]
[1752630163859,0.3060637,117780.0,117770.0,1.64418224]
[1752630164062,0.6628637,117780.0,117770.0,1.28338224]
[1752630164358,0.95025267,117780.0,117770.0,0.7404668]
[1752630164559,0.00249,117770.0,117760.0,0.28538897]
[1752630164859,0.27838371,117770.0,117760.0,1.28334224]
[1752630165062,0.1722878,117770.0,117760.0,1.28334224]
[1752630165360,0.1771078,117770.0,117760.0,1.28334224]
[1752630165862,0.00731,117770.0,117760.0,1.28334224]
[1752630166963,0.00731,117770.0,117760.0,0.99795327]
[1752630167163,0.00731,117770.0,117760.0,1.28334224]
[1752630167362,0.01131,117770.0,117760.0,1.28334224]
[1752630168064,0.01131,117770.0,117760.0,1.45315454]
[1752630168364,0.01131,117770.0,117760.0,1.28334224]
[1752630169864,0.11732111,117770.0,117760.0,1.28334224]
[1752630171462,0.11732111,117770.0,117760.0,0.69270224]
[1752630171662,0.28711891,117770.0,117760.0,1.28326224]
[1752630171861,0.00482,117750.0,117740.0,0.64618897]
[1752630172165,0.02380198,117750.0,117740.0,1.02573577]
[1752630172357,0.02380198,117750.0,117740.0,1.28326224]
[1752630172865,0.12981309,117750.0,117740.0,1.45310314]
[1752630173067,0.02380198,117750.0,117740.0,1.81390314]
[1752630173457,0.12972149,117750.0,117740.0,1.81390314]
[1752630174663,0.20661579,117750.0,117740.0,1.81390314]
[1752630175063,0.23729659,117750.0,117740.0,1.81390314]
[1752630176066,0.13137708,117750.0,117740.0,1.81390314]
[1752630178066,0.30120368,117750.0,117740.0,1.64406224]
[1752630178363,0.30369368,117750.0,117740.0,1.02573577]
[1752630178563,0.30369368,117750.0,117740.0,0.99787327]
[1752630178763,0.30369368,117750.0,117740.0,0.99783327]
[1752630179066,0.30369368,117750.0,117740.0,0.9784928]
[1752630179266,0.45542254,117750.0,117740.0,1.0063553]
[1752630179765,0.28310594,117750.0,117740.0,1.26388177]
[1752630179964,0.27828594,117750.0,117740.0,1.43372277]
[1752630180168,0.12655708,117750.0,117740.0,1.43372277]
[1752630180557,0.23237066,117750.0,117740.0,1.43372277]
[1752630181064,0.22337066,117750.0,117740.0,1.5091338]
[1752630181367,0.22537066,117750.0,117740.0,1.79452277]
[1752630182761,0.17570788,117750.0,117740.0,2.07991174]
[1752630183268,0.17570788,117750.0,117740.0,1.79452277]
[1752630185778,0.25133881,117750.0,117740.0,1.79452277]
[1752630186176,0.14552523,117750.0,117740.0,1.79452277]
[1752630186974,0.17049478,117780.0,117770.0,0.1697977]
[1752630187171,0.17049478,117780.0,117770.0,1.68616562]
[1752630187371,0.01876592,117780.0,117770.0,1.68616562]
[1752630187878,0.04899026,117780.0,117770.0,1.68616562]
[1752630188376,0.05099026,117780.0,117770.0,2.04696562]
[1752630189376,0.04899026,117780.0,117770.0,2.04696562]
[1752630189573,0.02076592,117780.0,117770.0,2.04696562]
[1752630189778,0.09033426,117780.0,117770.0,2.04696562]
[1752630192275,0.15172886,117790.0,117780.0,0.1697833]
[1752630192474,0.15172886,117790.0,117780.0,1.07349874]
[1752630193071,0.3875561,117810.0,117790.0,0.2546369]
[1752630193271,0.3875561,117810.0,117800.0,1.49391544]
[1752630193476,0.3451209,117810.0,117800.0,1.13311544]
[1752630193673,0.1753802,117810.0,117800.0,1.13311544]
[1752630193879,0.24471739,117810.0,117800.0,1.13311544]
[1752630194577,0.24471739,117810.0,117800.0,1.30286994]
[1752630195178,0.27079383,117810.0,117800.0,1.30286994]
[1752630195379,0.11449497,117810.0,117800.0,1.30286994]
[1752630195584,0.11649497,117810.0,117800.0,1.30286994]
[1752630196083,0.11449497,117810.0,117800.0,1.30286994]
[1752630196282,0.26822383,117810.0,117800.0,1.30286994]
[1752630197882,0.27279383,117810.0,117800.0,1.30286994]
[1752630198582,0.26822383,117810.0,117800.0,1.33073244]
[1752630198782,0.26822383,117810.0,117800.0,1.94905891]
[1752630199186,0.24214739,117810.0,117800.0,1.94905891]
[1752630199484,0.19624071,117810.0,117800.0,1.94905891]
[1752630199785,0.09041853,117810.0,117800.0,1.94905891]
[1752630200278,0.19624093,117810.0,117800.0,1.94905891]
[1752630200685,0.17715959,117810.0,117800.0,1.94905891]
[1752630201485,0.07133719,117810.0,117800.0,1.94905891]
[1752630208291,0.002,117810.0,117800.0,1.94905891]
[1752630208491,0.002,117810.0,117800.0,2.24675891]
[1752630208994,0.00035731,117810.0,117800.0,2.24675891]
[1752630210296,0.00035731,117810.0,117800.0,2.4165349]
[1752630210600,0.023501,117830.0,117820.0,0.1697258]
[1752630210601,0.04439152,117830.0,117820.0,0.1697258]
[1752630210790,0.018931,117830.0,117820.0,1.68032685]
[1752630211803,0.020931,117830.0,117820.0,1.68032685]
[1752630212003,0.025831,117830.0,117820.0,1.68032685]
[1752630212395,0.09272104,117830.0,117820.0,1.68032685]
[1752630213500,0.11873164,117830.0,117820.0,1.68032685]
[1752630217711,0.11873164,117830.0,117820.0,1.66100159]
[1752630219907,0.11383164,117830.0,117820.0,1.66100159]
[1752630220105,0.020931,117830.0,117820.0,2.02180159]
[1752630220297,0.020931,117830.0,117820.0,2.31950159]
[1752630221306,0.0192822,117850.0,117840.0,0.169697]
[1752630221512,0.0192822,117850.0,117840.0,1.94824141]
[1752630222913,0.0212822,117850.0,117840.0,1.94824141]
[1752630223213,0.04686226,117850.0,117840.0,1.94824141]
[1752630223413,0.0212822,117850.0,117840.0,1.94824141]
[1752630224512,0.0212822,117850.0,117840.0,1.94812141]
[1752630224714,0.0261822,117850.0,117840.0,1.94812141]
[1752630224915,0.0261822,117850.0,117840.0,1.66273244]
[1752630225413,0.09375526,117850.0,117840.0,1.66273244]
[1752630225714,0.19957766,117850.0,117840.0,1.64341071]
[1752630226515,0.19957766,117850.0,117840.0,0.90371544]
[1752630226715,0.5753866,117860.0,117850.0,0.00732]
[1752630226917,0.5776489,117860.0,117850.0,0.29270897]
[1752630227212,0.0471801,117860.0,117850.0,0.29270897]
[1752630228512,0.5786483,117860.0,117850.0,0.88694897]
[1752630228717,0.5835483,117860.0,117850.0,0.88694897]
[1752630228918,0.4138801,117860.0,117850.0,0.88694897]
[1752630229114,0.0530801,117860.0,117850.0,0.88694897]
[1752630230010,0.12115496,117860.0,117850.0,0.88694897]
[1752630230214,0.02701943,117860.0,117850.0,1.14447544]
[1752630230417,0.38781943,117860.0,117850.0,1.14447544]
[1752630231512,0.55748763,117860.0,117850.0,1.14447544]
[1752630232008,0.38781943,117860.0,117850.0,1.31415804]
[1752630232521,0.41295713,117860.0,117850.0,1.31415804]
[1752630232717,0.05215713,117860.0,117850.0,1.31415804]
[1752630232916,0.05215713,117860.0,117850.0,1.14447544]
[1752630233118,0.05215713,117860.0,117850.0,1.14439544]
[1752630233318,0.76701046,117870.0,117850.0,1.14439544]
[1752630233618,0.78854847,117870.0,117860.0,0.29278897]
[1752630234024,0.78854847,117870.0,117860.0,0.0074]
[1752630234519,0.85492463,117870.0,117860.0,0.0074]
[1752630234721,0.85592463,117870.0,117860.0,0.0074]
[1752630235116,1.6238761,117870.0,117850.0,0.00498]
[1752630235325,0.6315001,117860.0,117840.0,0.3608]
[1752630235515,1.32886916,117860.0,117840.0,0.3608]
[1752630235817,1.43019327,117860.0,117840.0,0.64618897]
[1752630236015,1.33019327,117860.0,117840.0,0.64618897]
[1752630236223,0.11635176,117850.0,117840.0,0.64618897]
[1752630236525,0.23540168,117850.0,117840.0,0.64618897]
[1752630236723,0.40511368,117850.0,117840.0,0.64618897]
[1752630238019,0.40711368,117850.0,117840.0,0.64718897]
[1752630238219,0.40711368,117850.0,117840.0,0.62586397]
[1752630239323,0.65711368,117850.0,117840.0,0.62586397]
[1752630240225,1.24619368,117850.0,117840.0,0.62586397]
[1752630240427,1.29792254,117850.0,117840.0,0.62586397]
[1752630240821,0.70884254,117850.0,117840.0,0.62586397]
[1752630241019,1.29792254,117850.0,117840.0,0.62586397]
[1752630241727,1.29792254,117850.0,117840.0,0.60653749]
[1752630241925,0.70884254,117850.0,117840.0,0.60653749]
[1752630242120,1.29760293,117850.0,117840.0,0.61138749]
[1752630242527,1.29760293,117850.0,117840.0,0.45082447]
[1752630244222,1.29760293,117850.0,117840.0,0.73869344]
[1752630244223,0.34214187,117850.0,117840.0,0.73869344]
[1752630244729,0.34214187,117850.0,117840.0,1.32773344]
[1752630245330,0.34214187,117850.0,117840.0,0.73869344]
[1752630245532,0.34214187,117850.0,117840.0,0.44597447]
[1752630246020,0.19073262,117850.0,117840.0,0.45082447]
[1752630246830,0.38775159,117850.0,117840.0,0.45082447]
[1752630247229,0.38775159,117850.0,117840.0,0.29123897]
[1752630247431,0.38775159,117850.0,117840.0,0.65203897]
[1752630247631,0.38775159,117850.0,117840.0,0.65103897]
[1752630249929,0.38775159,117850.0,117840.0,0.63171183]
[1752630249930,0.39494159,117850.0,117840.0,0.63171183]
[1752630251129,0.39494159,117850.0,117840.0,0.63419183]
[1752630251922,0.39494159,117850.0,117840.0,0.63904183]
[1752630253434,0.39494159,117850.0,117840.0,0.65351897]
[1752630256535,0.19792262,117850.0,117840.0,0.65351897]
[1752630257336,0.19792262,117850.0,117840.0,0.36813]
[1752630257527,0.19792262,117850.0,117840.0,0.65351897]
[1752630257838,0.394652,117850.0,117840.0,0.63419263]
[1752630258034,0.394652,117850.0,117840.0,0.63667263]
[1752630259040,0.19792262,117850.0,117840.0,0.63667263]
[1752630259952,0.19792262,117850.0,117840.0,0.64152263]
[1752630260739,0.02823992,117850.0,117840.0,0.64152263]
[1752630260940,0.19792262,117850.0,117840.0,0.64152263]
[1752630263242,0.19792262,117850.0,117840.0,0.41215505]
[1752630263651,0.1720371,117840.0,117830.0,0.36328]
[1752630263941,0.1769971,117840.0,117830.0,0.88147897]
[1752630264540,0.1769971,117840.0,117830.0,1.24227897]
[1752630265237,0.1769971,117840.0,117830.0,1.50080544]
[1752630265537,0.1779971,117840.0,117830.0,1.50080544]
[1752630266647,0.1779971,117840.0,117830.0,0.91204544]
[1752630266942,0.1779971,117840.0,117830.0,0.95785]
[1752630267143,0.1779971,117840.0,117830.0,1.22391139]
[1752630267343,0.42048199,117840.0,117830.0,1.22391139]
[1752630269138,0.42048199,117840.0,117830.0,1.48143786]
[1752630270838,0.25078489,117840.0,117830.0,1.48143786]
[1752630271037,0.25078489,117840.0,117830.0,1.48192786]
[1752630271440,0.1779972,117840.0,117830.0,1.48192786]
[1752630271642,0.0083,117840.0,117830.0,1.48192786]
[1752630272036,0.1779972,117840.0,117830.0,1.48192786]
[1752630273244,0.0083,117840.0,117830.0,1.48192786]
[1752630273443,0.42048209,117840.0,117830.0,1.48192786]
[1752630273746,0.25078489,117840.0,117830.0,1.48192786]
[1752630274643,0.42048219,117840.0,117830.0,1.48192786]
[1752630275143,0.42048219,117840.0,117830.0,1.46260154]
[1752630275845,0.61773026,117840.0,117830.0,1.46211154]
[1752630276544,0.61773026,117840.0,117830.0,1.13263544]
[1752630276949,0.42048219,117840.0,117830.0,0.54470544]
[1752630277245,0.42048219,117840.0,117830.0,1.13326544]
[1752630277438,0.1779973,117840.0,117830.0,1.49406544]
[1752630277739,0.1779973,117840.0,117830.0,1.13326544]
[1752630277940,0.1779973,117840.0,117830.0,0.90387776]
[1752630278247,0.1779973,117840.0,117830.0,0.05700129]
[1752630279135,0.1719717,117830.0,117820.0,0.95023735]
[1752630279340,0.3933734,117830.0,117820.0,1.49315279]
[1752630281442,0.3933734,117830.0,117820.0,0.00091735]
[1752630281643,0.19618239,117830.0,117820.0,0.00012735]
[1752630281846,0.78466239,117830.0,117820.0,0.00012735]
[1752630282744,1.43085136,117830.0,117820.0,0.00012735]
[1752630282946,0.78466239,117830.0,117820.0,0.00012735]
[1752630283147,0.1719863,117820.0,117810.0,0.88530202]
[1752630283348,0.37401697,117820.0,117810.0,0.88530202]
[1752630284746,0.37501697,117820.0,117810.0,0.88830202]
[1752630285142,0.37501697,117820.0,117810.0,0.86068613]
[1752630285745,0.1779363,117820.0,117810.0,0.86068613]
[1752630287852,0.1779363,117820.0,117810.0,0.57529716]
[1752630288046,0.1779363,117820.0,117810.0,0.003]
[1752630288251,0.5387363,117820.0,117810.0,0.003]
[1752630288849,0.1769507,117810.0,117800.0,0.00079]
[1752630289056,0.34717532,117810.0,117800.0,0.25831647]
[1752630289861,0.78416241,117810.0,117800.0,0.25831647]
[1752630291056,0.78416241,117810.0,117800.0,0.23998368]
[1752630291057,0.78516241,117810.0,117800.0,0.23998368]
[1752630291859,1.43135138,117810.0,117800.0,0.001]
[1752630292065,1.14596241,117810.0,117800.0,0.001]
[1752630292367,0.78516241,117810.0,117800.0,0.001]
[1752630293266,0.85304288,117810.0,117800.0,0.001]
[1752630293568,1.00434472,117810.0,117800.0,0.28638897]
[1752630293769,1.00434472,117810.0,117800.0,0.64718897]
[1752630293957,1.00326472,117810.0,117800.0,0.64718897]
[1752630294265,1.00526472,117810.0,117800.0,0.64718897]
[1752630295467,0.41690472,117810.0,117800.0,0.64718897]
[1752630295665,1.00526472,117810.0,117800.0,0.64718897]
[1752630295865,0.85396288,117810.0,117800.0,0.64718897]
[1752630297365,0.26560288,117810.0,117800.0,0.64718897]
[1752630299070,0.26560288,117810.0,117800.0,0.88617265]
[1752630299671,0.26560288,117810.0,117800.0,0.86684023]
[1752630300071,0.41690472,117810.0,117800.0,0.86684023]
[1752630300269,0.41690472,117810.0,117800.0,0.62785655]
[1752630300470,0.41690472,117810.0,117800.0,0.86684023]
[1752630300969,0.41690472,117810.0,117800.0,0.50604023]
[1752630301166,0.41690472,117810.0,117800.0,1.09436023]
[1752630301772,0.41690472,117810.0,117800.0,1.11369265]
[1752630302867,0.26560288,117810.0,117800.0,0.28638897]
[1752630303173,0.41689734,117810.0,117800.0,1.11361265]
[1752630303869,0.62640288,117810.0,117800.0,0.52537265]
[1752630304171,0.00493,117780.0,117770.0,0.94924]
[1752630304363,0.12753248,117790.0,117770.0,1.23442897]
[1752630304564,0.13246248,117790.0,117780.0,0.88201749]
[1752630304767,0.02653718,117790.0,117780.0,0.88201749]
[1752630304968,0.02666453,117790.0,117780.0,0.88201749]
[1752630306173,0.02766453,117790.0,117780.0,0.88301749]
[1752630306369,0.178973,117790.0,117780.0,0.88301749]
[1752630307273,0.171633,117790.0,117780.0,0.90040543]
[1752630307472,0.171633,117790.0,117780.0,1.48948543]
[1752630307970,0.19404998,117790.0,117780.0,1.65926953]
[1752630308175,0.04274151,117790.0,117780.0,1.65926953]
[1752630308781,0.04274151,117790.0,117780.0,1.37388056]
[1752630309080,0.04274151,117790.0,117780.0,1.65926953]
[1752630309974,0.04274151,117790.0,117780.0,1.48948543]
[1752630310476,0.14874382,117790.0,117780.0,1.48948543]
[1752630312378,0.04274151,117790.0,117780.0,1.48948543]
[1752630313181,0.04274151,117790.0,117780.0,1.65926963]
[1752630313576,0.15130847,117800.0,117790.0,0.1697696]
[1752630313777,0.19774222,117810.0,117790.0,1.33717606]
[1752630313778,0.34412069,117810.0,117790.0,1.33717606]
[1752630314083,0.23796065,117810.0,117800.0,1.75648646]
[1752630314471,0.11418262,117810.0,117800.0,1.75648646]
[1752630315384,0.26990109,117810.0,117800.0,1.47109749]
[1752630316082,0.11859262,117810.0,117800.0,1.47109749]
[1752630317379,0.11659262,117810.0,117800.0,1.47209749]
[1752630317585,0.11859262,117810.0,117800.0,1.47209749]
[1752630318085,0.11859262,117810.0,117800.0,1.75748646]
[1752630318690,0.46694662,117810.0,117800.0,1.75748646]
[1752630319090,0.46453662,117810.0,117800.0,1.75748646]
[1752630320088,0.26785383,117810.0,117800.0,1.75748646]
[1752630321891,0.26292383,117810.0,117800.0,1.75748646]
[1752630322292,0.26785383,117810.0,117800.0,1.75748646]
[1752630322992,0.26292383,117810.0,117800.0,1.75748646]
[1752630323486,0.26292383,117810.0,117800.0,1.92724246]
[1752630323992,0.26292383,117810.0,117800.0,1.90791214]
[1752630324494,0.11125262,117810.0,117800.0,1.90791214]
[1752630326089,0.11125262,117810.0,117800.0,1.73815614]
[1752630326293,0.11125262,117810.0,117800.0,1.90791224]
[1752630326597,0.11125262,117810.0,117800.0,1.73815614]
[1752630327488,0.11125262,117810.0,117800.0,1.90791224]
[1752630327693,0.11125262,117810.0,117800.0,1.73815614]
[1752630328588,0.11618262,117810.0,117800.0,1.73815614]
[1752630332398,0.2677965,117810.0,117800.0,1.73815614]
[1752630334396,0.2677965,117810.0,117800.0,0.60852876]
[1752630334397,0.440008,117810.0,117800.0,0.60852876]
[1752630334595,0.440008,117810.0,117800.0,0.84435728]
[1752630334900,0.28839412,117810.0,117800.0,1.43259728]
[1752630335700,0.11865262,117810.0,117800.0,1.43259728]
[1752630336297,0.28839432,117810.0,117800.0,0.60852876]
[1752630336497,0.28839432,117810.0,117800.0,0.87462897]
[1752630338902,0.28839432,117810.0,117800.0,0.58924]
[1752630339098,0.97055513,117810.0,117800.0,0.001]
[1752630339600,0.1769605,117790.0,117780.0,0.60562794]
[1752630339897,0.1769605,117790.0,117780.0,0.30277691]
[1752630340103,0.32849546,117790.0,117780.0,0.30277691]
[1752630340403,0.52517825,117790.0,117780.0,0.30277691]
[1752630340702,0.88597825,117790.0,117780.0,0.30277691]
[1752630340996,0.73444329,117790.0,117780.0,0.28538897]
[1752630341197,0.176975,117780.0,117770.0,0.71298792]
[1752630341397,0.32839183,117780.0,117770.0,0.71298792]
[1752630342403,0.16360683,117780.0,117770.0,0.71298792]
[1752630343305,0.33339173,117780.0,117770.0,0.71298792]
[1752630343599,0.33339173,117780.0,117770.0,0.28538897]
[1752630343804,0.1819749,117780.0,117770.0,0.28538897]
[1752630344104,0.1819749,117780.0,117770.0,0.52121749]
[1752630344305,0.01219,117780.0,117770.0,0.52121749]
[1752630350610,0.00972,117780.0,117770.0,0.52121749]
[1752630350805,0.005,117780.0,117770.0,1.10957749]
[1752630351006,0.005,117780.0,117770.0,1.47037749]
[1752630351210,0.1863546,117780.0,117770.0,1.18498852]
[1752630351412,0.22698538,117790.0,117770.0,1.13671509]
[1752630351610,0.22698538,117790.0,117780.0,1.47037749]
[1752630351811,0.19381595,117800.0,117780.0,1.47037749]
[1752630352012,0.23153705,117800.0,117790.0,0.28538897]
[1752630352209,0.63478535,117800.0,117790.0,0.28538897]
[1752630352410,0.67722745,117800.0,117790.0,0.28538897]
[1752630352613,0.83336428,117800.0,117790.0,0.28538897]
[1752630353311,0.83436428,117800.0,117790.0,0.28538897]
[1752630354009,0.79192218,117800.0,117790.0,0.28538897]
[1752630354214,0.1769604,117790.0,117780.0,0.87374897]
[1752630354513,0.1769604,117790.0,117780.0,0.28538897]
[1752630355012,0.1769746,117780.0,117770.0,0.58836]
[1752630355315,0.1769746,117780.0,117770.0,1.10957749]
[1752630355912,0.1769746,117780.0,117770.0,0.52121749]
[1752630356113,0.1769746,117780.0,117770.0,0.28538897]
[1752630356310,0.2571492,117780.0,117760.0,0.28538897]
[1752630356517,0.00719,117770.0,117760.0,1.23454897]
[1752630356817,0.1769893,117770.0,117760.0,1.23454897]
[1752630357005,0.19392853,117770.0,117760.0,1.18498852]
[1752630357318,0.34534536,117770.0,117760.0,0.28538897]
[1752630357514,0.34534536,117770.0,117760.0,1.10961749]
[1752630358014,0.19392853,117770.0,117760.0,1.10961749]
[1752630358218,0.20292853,117770.0,117760.0,1.11061749]
[1752630358607,0.20292853,117770.0,117760.0,0.52221749]
[1752630358814,0.56372853,117770.0,117760.0,0.28638897]
[1752630359013,0.71514536,117770.0,117760.0,0.28638897]
[1752630361317,0.56372853,117770.0,117760.0,0.28638897]
[1752630361515,0.71496225,117770.0,117760.0,0.28638897]
[1752630361715,0.35416225,117770.0,117760.0,0.28638897]
[1752630363120,0.20292853,117770.0,117760.0,0.28638897]
[1752630363717,0.03312923,117770.0,117760.0,0.28638897]
[1752630363913,0.03312923,117770.0,117760.0,0.64718897]
[1752630364221,0.17722112,117770.0,117760.0,1.16840646]
[1752630365009,0.02593923,117770.0,117760.0,1.16840646]
[1752630369023,0.03080923,117770.0,117760.0,1.16840646]
[1752630372022,0.20304893,117770.0,117760.0,0.88301749]
[1752630372418,0.03324923,117770.0,117760.0,0.88301749]
[1752630376834,0.20304893,117770.0,117760.0,1.11073749]
[1752630377036,0.03324923,117770.0,117760.0,1.11073749]
[1752630378227,0.02593923,117770.0,117760.0,1.39612646]
[1752630378738,0.03080923,117770.0,117760.0,1.39612646]
[1752630379239,0.03080923,117770.0,117760.0,1.39512646]
[1752630379537,0.02593923,117770.0,117760.0,1.75592646]
[1752630379933,0.03080923,117770.0,117760.0,1.75592646]
[1752630380338,0.13685107,117770.0,117760.0,1.75592646]
[1752630380637,0.03080923,117770.0,117760.0,1.75592646]
[1752630381036,0.03080923,117770.0,117760.0,1.52009794]
[1752630381339,0.03080923,117770.0,117760.0,1.75592646]
[1752630383746,0.13689407,117770.0,117760.0,1.75592646]
[1752630384547,0.03080923,117770.0,117760.0,1.75592646]
[1752630384945,0.13689407,117770.0,117760.0,1.75592646]
[1752630385742,0.30913357,117770.0,117760.0,1.47053749]
[1752630387147,0.13933407,117770.0,117760.0,1.47053749]
[1752630387443,0.13689407,117770.0,117760.0,1.75592646]
[1752630390049,0.03080923,117770.0,117760.0,1.75592646]
[1752630390451,0.03080923,117770.0,117760.0,1.16740646]
[1752630390649,0.18213498,117770.0,117760.0,1.75584646]
[1752630392353,0.18213498,117770.0,117760.0,1.16740646]
[1752630392552,0.18213498,117770.0,117760.0,1.75584646]
[1752630394455,0.18213498,117770.0,117760.0,1.73650877]
[1752630394955,0.16519575,117770.0,117760.0,1.73650877]
[1752630395451,0.01387,117770.0,117760.0,1.73650877]
[1752630397555,0.16555973,117770.0,117760.0,1.73650877]
[1752630398354,0.01387,117770.0,117760.0,1.73650877]
[1752630399855,0.10617178,117770.0,117760.0,2.11860607]
[1752630400047,0.19668279,117780.0,117770.0,0.1697995]
[1752630400252,0.19668279,117780.0,117770.0,1.05181699]
[1752630400453,0.15628397,117790.0,117770.0,1.05181699]
[1752630400759,0.15628397,117790.0,117780.0,1.10961749]
[1752630401057,0.32605467,117790.0,117780.0,1.10961749]
[1752630401252,0.32836467,117790.0,117780.0,1.10961749]
[1752630402158,0.15859397,117790.0,117780.0,1.10961749]
[1752630403854,0.00692,117790.0,117780.0,1.09028175]
[1752630404055,0.20460279,117790.0,117780.0,1.10328175]
[1752630405857,0.20460279,117790.0,117780.0,0.87379788]
[1752630406564,0.00792,117790.0,117780.0,0.87379788]
[1752630407663,0.00561,117790.0,117780.0,0.04956936]
[1752630407963,0.00561,117790.0,117780.0,0.87427788]
[1752630408567,0.00792,117790.0,117780.0,0.87427788]
[1752630409357,0.82387997,117790.0,117780.0,0.013]
[1752630409871,0.177691,117790.0,117780.0,0.29838897]
[1752630410068,0.00792,117790.0,117780.0,0.29838897]
[1752630410271,0.177691,117790.0,117780.0,0.29838897]
[1752630414268,0.1594734,117790.0,117780.0,0.29838897]
[1752630415471,0.1594734,117790.0,117780.0,0.28538897]
[1752630415869,0.00792,117790.0,117780.0,0.28538897]
[1752630416463,0.00792,117790.0,117780.0,0.52121749]
[1752630416464,0.00561,117790.0,117780.0,0.52121749]
[1752630418973,0.00561,117790.0,117780.0,0.23582852]
[1752630419173,0.00561,117790.0,117780.0,0.52121749]
[1752630420969,0.001,117790.0,117780.0,0.52121749]